Workbook

Sheet 名单
A1: 江苏科技大学 材料科学与工程 学院 2025年硕士研究生复试录取排序表
A2: 生源类别（一志愿或调剂） | B2: 复试专业 代码 | C2: 复试专业 名称 | D2: 复试研究方向代码 （仅按研究方向招生的专业需填写） | E2: 姓名 | F2: 考生编号 | G2: A 初试总成绩（含加分） | H2: B 专业课考试（考核）成绩 | I2: C 口语听力总成绩 | J2: D 专业知识面试成绩 | K2: （B+C+D+E) 复试总成绩 （保留至小数点后1位） | L2: 综合成绩 （保留至小数点后2位小数） 综合成绩=初试成绩*70%+复试总成绩*30% | M2: 综合成绩排名 | N2: 是否拟录取 | O2: 备注
A3: 一志愿 | B3: 080500 | C3: 材料科学与工程 | E3: 蒋凯 | F3: 102895210700528 | G3: 318 | H3: =VLOOKUP(E3,[1]sheet1!$C$4:$L$9,10,FALSE) -> 112 | I3: 38 | J3: 90 | K3: =H3+I3+J3 -> 240 | L3: =G3*0.7+K3*0.3 -> 294.45 | M3: 1 | N3: 是
A4: 一志愿 | B4: 080500 | C4: 材料科学与工程 | E4: 崔中原 | F4: 102895210703138 | G4: 293 | H4: =VLOOKUP(E4,[1]sheet1!$C$4:$L$9,10,FALSE) -> 128 | I4: 39 | J4: 86 | K4: =H4+I4+J4 -> 252 | L4: =G4*0.7+K4*0.3 -> 280.78 | M4: 2 | N4: 是
A5: 一志愿 | B5: 080500 | C5: 材料科学与工程 | E5: 刘泽民 | F5: 102895210700536 | G5: 298 | H5: =VLOOKUP(E5,[1]sheet1!$C$4:$L$9,10,FALSE) -> 104 | I5: 44 | J5: 82 | K5: =H5+I5+J5 -> 230 | L5: =G5*0.7+K5*0.3 -> 277.53 | M5: 3 | N5: 是
A6: 一志愿 | B6: 080500 | C6: 材料科学与工程 | E6: 秦敬冉 | F6: 102895210704405 | G6: 287 | H6: =VLOOKUP(E6,[1]sheet1!$C$4:$L$9,10,FALSE) -> 105 | I6: 47 | J6: 89 | K6: =H6+I6+J6 -> 240 | L6: =G6*0.7+K6*0.3 -> 272.98 | M6: 4 | N6: 是
A7: 一志愿 | B7: 080500 | C7: 材料科学与工程 | E7: 刘德权 | F7: 102895210700534 | G7: 281 | H7: =VLOOKUP(E7,[1]sheet1!$C$4:$L$9,10,FALSE) -> 103 | I7: 43 | J7: 84 | K7: =H7+I7+J7 -> 230 | L7: =G7*0.7+K7*0.3 -> 265.78 | M7: 5 | N7: 是
A8: 一志愿 | B8: 080500 | C8: 材料科学与工程 | E8: 唐康杰 | F8: 102895210700542 | G8: 270 | H8: =VLOOKUP(E8,[1]sheet1!$C$4:$L$9,10,FALSE) -> 117 | I8: 43 | J8: 88 | K8: =H8+I8+J8 -> 248 | L8: =G8*0.7+K8*0.3 -> 263.43 | M8: 6 | N8: 是
A9: 一志愿 | B9: 085600 | C9: 材料与化工 | E9: 李光耀 | F9: 102895210703141 | G9: 351 | H9: =VLOOKUP(E9,[1]sheet1!$C$10:$L$81,10,FALSE) -> 123 | I9: 45 | J9: 90 | K9: =H9+I9+J9 -> 258 | L9: =G9*0.7+K9*0.3 -> 323.10 | M9: 1 | N9: 是
A10: 一志愿 | B10: 085600 | C10: 材料与化工 | E10: 倪泽远 | F10: 102895210701969 | G10: 345 | H10: =VLOOKUP(E10,[1]sheet1!$C$10:$L$81,10,FALSE) -> 117 | I10: 48 | J10: 82 | K10: =H10+I10+J10 -> 247 | L10: =G10*0.7+K10*0.3 -> 315.60 | M10: 2 | N10: 是
A11: 一志愿 | B11: 085600 | C11: 材料与化工 | E11: 唐轶群 | F11: 102895210701975 | G11: 346 | H11: =VLOOKUP(E11,[1]sheet1!$C$10:$L$81,10,FALSE) -> 110 | I11: 35 | J11: 89 | K11: =H11+I11+J11 -> 234 | L11: =G11*0.7+K11*0.3 -> 312.40 | M11: 3 | N11: 是
A12: 一志愿 | B12: 085600 | C12: 材料与化工 | E12: 丛培澍 | F12: 102895210700556 | G12: 344 | H12: =VLOOKUP(E12,[1]sheet1!$C$10:$L$81,10,FALSE) -> 98 | I12: 45 | J12: 86 | K12: =H12+I12+J12 -> 229 | L12: =G12*0.7+K12*0.3 -> 309.50 | M12: 4 | N12: 是
A13: 一志愿 | B13: 085600 | C13: 材料与化工 | E13: 夏星翼 | F13: 102895210703728 | G13: 328 | H13: =VLOOKUP(E13,[1]sheet1!$C$10:$L$81,10,FALSE) -> 132 | I13: 40 | J13: 90 | K13: =H13+I13+J13 -> 262 | L13: =G13*0.7+K13*0.3 -> 308.20 | M13: 5 | N13: 是
A14: 一志愿 | B14: 085600 | C14: 材料与化工 | E14: 王卓 | F14: 102895210704710 | G14: 329 | H14: =VLOOKUP(E14,[1]sheet1!$C$10:$L$81,10,FALSE) -> 119 | I14: 45 | J14: 93 | K14: =H14+I14+J14 -> 257 | L14: =G14*0.7+K14*0.3 -> 307.40 | M14: 6 | N14: 是
A15: 一志愿 | B15: 085600 | C15: 材料与化工 | E15: 朱纪伟 | F15: 102895210704380 | G15: 331 | H15: =VLOOKUP(E15,[1]sheet1!$C$10:$L$81,10,FALSE) -> 126 | I15: 35 | J15: 80 | K15: =H15+I15+J15 -> 241 | L15: =G15*0.7+K15*0.3 -> 304.00 | M15: 7 | N15: 是
A16: 一志愿 | B16: 085600 | C16: 材料与化工 | E16: 黄功磊 | F16: 102895210705108 | G16: 328 | H16: =VLOOKUP(E16,[1]sheet1!$C$10:$L$81,10,FALSE) -> 112 | I16: 40 | J16: 95 | K16: =H16+I16+J16 -> 247 | L16: =G16*0.7+K16*0.3 -> 303.70 | M16: 8 | N16: 是
A17: 一志愿 | B17: 085600 | C17: 材料与化工 | E17: 彭淇 | F17: 102895210700582 | G17: 339 | H17: =VLOOKUP(E17,[1]sheet1!$C$10:$L$81,10,FALSE) -> 91 | I17: 45 | J17: 85 | K17: =H17+I17+J17 -> 221 | L17: =G17*0.7+K17*0.3 -> 303.60 | M17: 9 | N17: 是
A18: 一志愿 | B18: 085600 | C18: 材料与化工 | E18: 翟志恒 | F18: 102895210702242 | G18: 326 | H18: =VLOOKUP(E18,[1]sheet1!$C$10:$L$81,10,FALSE) -> 105 | I18: 45 | J18: 96 | K18: =H18+I18+J18 -> 246 | L18: =G18*0.7+K18*0.3 -> 302.00 | M18: 10 | N18: 是 | O18: 士兵计划
A19: 一志愿 | B19: 085600 | C19: 材料与化工 | E19: 刘皓然 | F19: 102895210700570 | G19: 336 | H19: =VLOOKUP(E19,[1]sheet1!$C$10:$L$81,10,FALSE) -> 91 | I19: 42 | J19: 85 | K19: =H19+I19+J19 -> 218 | L19: =G19*0.7+K19*0.3 -> 300.60 | M19: 11 | N19: 是
A20: 一志愿 | B20: 085600 | C20: 材料与化工 | E20: 李凌宇 | F20: 102895210700567 | G20: 328 | H20: =VLOOKUP(E20,[1]sheet1!$C$10:$L$81,10,FALSE) -> 105 | I20: 41 | J20: 88 | K20: =H20+I20+J20 -> 234 | L20: =G20*0.7+K20*0.3 -> 299.80 | M20: 12 | N20: 是
A21: 一志愿 | B21: 085600 | C21: 材料与化工 | E21: 艾昕 | F21: 102895210701477 | G21: 317 | H21: =VLOOKUP(E21,[1]sheet1!$C$10:$L$81,10,FALSE) -> 121 | I21: 40 | J21: 90 | K21: =H21+I21+J21 -> 251 | L21: =G21*0.7+K21*0.3 -> 297.20 | M21: 13 | N21: 是
A22: 一志愿 | B22: 085600 | C22: 材料与化工 | E22: 缪延骏 | F22: 102895210700581 | G22: 326 | H22: =VLOOKUP(E22,[1]sheet1!$C$10:$L$81,10,FALSE) -> 91 | I22: 40 | J22: 80 | K22: =H22+I22+J22 -> 211 | L22: =G22*0.7+K22*0.3 -> 291.50 | M22: 14 | N22: 是
A23: 一志愿 | B23: 085600 | C23: 材料与化工 | E23: 郑艺琳 | F23: 102895210703677 | G23: 306 | H23: =VLOOKUP(E23,[1]sheet1!$C$10:$L$81,10,FALSE) -> 128 | I23: 44 | J23: 83 | K23: =H23+I23+J23 -> 255 | L23: =G23*0.7+K23*0.3 -> 290.70 | M23: 15 | N23: 是
A24: 一志愿 | B24: 085600 | C24: 材料与化工 | E24: 王宇杰 | F24: 102895210701980 | G24: 319 | H24: =VLOOKUP(E24,[1]sheet1!$C$10:$L$81,10,FALSE) -> 99 | I24: 41 | J24: 80 | K24: =H24+I24+J24 -> 220 | L24: =G24*0.7+K24*0.3 -> 289.28 | M24: 16 | N24: 是
A25: 一志愿 | B25: 085600 | C25: 材料与化工 | E25: 田家嵘 | F25: 102895210702879 | G25: 317 | H25: =VLOOKUP(E25,[1]sheet1!$C$10:$L$81,10,FALSE) -> 114 | I25: 40 | J25: 70 | K25: =H25+I25+J25 -> 224 | L25: =G25*0.7+K25*0.3 -> 289.10 | M25: 17 | N25: 是
A26: 一志愿 | B26: 085600 | C26: 材料与化工 | E26: 张宇 | F26: 102895210701484 | G26: 323 | H26: =VLOOKUP(E26,[1]sheet1!$C$10:$L$81,10,FALSE) -> 98 | I26: 42 | J26: 69 | K26: =H26+I26+J26 -> 209 | L26: =G26*0.7+K26*0.3 -> 288.80 | M26: 18 | N26: 是
A27: 一志愿 | B27: 085600 | C27: 材料与化工 | E27: 侯彤彤 | F27: 102895210703139 | G27: 316 | H27: =VLOOKUP(E27,[1]sheet1!$C$10:$L$81,10,FALSE) -> 93 | I27: 45 | J27: 85 | K27: =H27+I27+J27 -> 223 | L27: =G27*0.7+K27*0.3 -> 288.10 | M27: 19 | N27: 是
A28: 一志愿 | B28: 085600 | C28: 材料与化工 | E28: 庄嘉怡 | F28: 102895210701995 | G28: 309 | H28: =VLOOKUP(E28,[1]sheet1!$C$10:$L$81,10,FALSE) -> 119 | I28: 35 | J28: 84 | K28: =H28+I28+J28 -> 238 | L28: =G28*0.7+K28*0.3 -> 287.70 | M28: 20 | N28: 是
A29: 一志愿 | B29: 085600 | C29: 材料与化工 | E29: 唐宇轩 | F29: 102895210700588 | G29: 320 | H29: =VLOOKUP(E29,[1]sheet1!$C$10:$L$81,10,FALSE) -> 94 | I29: 40 | J29: 78 | K29: =H29+I29+J29 -> 212 | L29: =G29*0.7+K29*0.3 -> 287.60 | M29: 21 | N29: 是
A30: 一志愿 | B30: 085600 | C30: 材料与化工 | E30: 张建飞 | F30: 102895210701483 | G30: 319 | H30: =VLOOKUP(E30,[1]sheet1!$C$10:$L$81,10,FALSE) -> 102 | I30: 36 | J30: 73 | K30: =H30+I30+J30 -> 211 | L30: =G30*0.7+K30*0.3 -> 286.60 | M30: 22 | N30: 是
A31: 一志愿 | B31: 085600 | C31: 材料与化工 | E31: 周承军 | F31: 102895210701993 | G31: 314 | H31: =VLOOKUP(E31,[1]sheet1!$C$10:$L$81,10,FALSE) -> 116 | I31: 36 | J31: 70 | K31: =H31+I31+J31 -> 222 | L31: =G31*0.7+K31*0.3 -> 286.40 | M31: 23 | N31: 是
A32: 一志愿 | B32: 085600 | C32: 材料与化工 | E32: 孟心悦 | F32: 102895210700579 | G32: 312 | H32: =VLOOKUP(E32,[1]sheet1!$C$10:$L$81,10,FALSE) -> 91 | I32: 45 | J32: 90 | K32: =H32+I32+J32 -> 226 | L32: =G32*0.7+K32*0.3 -> 286.20 | M32: 24 | N32: 是
A33: 一志愿 | B33: 085600 | C33: 材料与化工 | E33: 刘明涛 | F33: 102895210701965 | G33: 307 | H33: =VLOOKUP(E33,[1]sheet1!$C$10:$L$81,10,FALSE) -> 90 | I33: 46 | J33: 98 | K33: =H33+I33+J33 -> 234 | L33: =G33*0.7+K33*0.3 -> 285.10 | M33: 25 | N33: 是
A34: 一志愿 | B34: 085600 | C34: 材料与化工 | E34: 丁铆虔 | F34: 102895210701958 | G34: 308 | H34: =VLOOKUP(E34,[1]sheet1!$C$10:$L$81,10,FALSE) -> 102 | I34: 40 | J34: 83 | K34: =H34+I34+J34 -> 225 | L34: =G34*0.7+K34*0.3 -> 283.10 | M34: 26 | N34: 是
A35: 一志愿 | B35: 085600 | C35: 材料与化工 | E35: 高嘉欣 | F35: 102895210700883 | G35: 304 | H35: =VLOOKUP(E35,[1]sheet1!$C$10:$L$81,10,FALSE) -> 99 | I35: 43 | J35: 88 | K35: =H35+I35+J35 -> 230 | L35: =G35*0.7+K35*0.3 -> 281.80 | M35: 27 | N35: 是
A36: 一志愿 | B36: 085600 | C36: 材料与化工 | E36: 林明富 | F36: 102895210705124 | G36: 305 | H36: =VLOOKUP(E36,[1]sheet1!$C$10:$L$81,10,FALSE) -> 108 | I36: 38 | J36: 80 | K36: =H36+I36+J36 -> 226 | L36: =G36*0.7+K36*0.3 -> 281.30 | M36: 28 | N36: 是
A37: 一志愿 | B37: 085600 | C37: 材料与化工 | E37: 汪传佳 | F37: 102895210700592 | G37: 306 | H37: =VLOOKUP(E37,[1]sheet1!$C$10:$L$81,10,FALSE) -> 91 | I37: 43 | J37: 89 | K37: =H37+I37+J37 -> 223 | L37: =G37*0.7+K37*0.3 -> 281.10 | M37: 29 | N37: 是
A38: 一志愿 | B38: 085600 | C38: 材料与化工 | E38: 蒋向阳 | F38: 102895210703140 | G38: 297 | H38: =VLOOKUP(E38,[1]sheet1!$C$10:$L$81,10,FALSE) -> 112 | I38: 35 | J38: 92 | K38: =H38+I38+J38 -> 239 | L38: =G38*0.7+K38*0.3 -> 279.60 | M38: 30 | N38: 是
A39: 一志愿 | B39: 085600 | C39: 材料与化工 | E39: 庄杨洋 | F39: 102895210702597 | G39: 309 | H39: =VLOOKUP(E39,[1]sheet1!$C$10:$L$81,10,FALSE) -> 97 | I39: 38 | J39: 74 | K39: =H39+I39+J39 -> 209 | L39: =G39*0.7+K39*0.3 -> 279.00 | M39: 31 | N39: 是
A40: 一志愿 | B40: 085600 | C40: 材料与化工 | E40: 陈昊阳 | F40: 102895210701955 | G40: 295 | H40: =VLOOKUP(E40,[1]sheet1!$C$10:$L$81,10,FALSE) -> 115 | I40: 45 | J40: 80 | K40: =H40+I40+J40 -> 240 | L40: =G40*0.7+K40*0.3 -> 278.50 | M40: 32 | N40: 是
A41: 一志愿 | B41: 085600 | C41: 材料与化工 | E41: 代子鑫 | F41: 102895210703812 | G41: 292 | H41: =VLOOKUP(E41,[1]sheet1!$C$10:$L$81,10,FALSE) -> 124 | I41: 38 | J41: 85 | K41: =H41+I41+J41 -> 247 | L41: =G41*0.7+K41*0.3 -> 278.50 | M41: 33 | N41: 是
A42: 一志愿 | B42: 085600 | C42: 材料与化工 | E42: 吴子文 | F42: 102895210701981 | G42: 303 | H42: =VLOOKUP(E42,[1]sheet1!$C$10:$L$81,10,FALSE) -> 90 | I42: 46 | J42: 84 | K42: =H42+I42+J42 -> 220 | L42: =G42*0.7+K42*0.3 -> 278.05 | M42: 34 | N42: 是
A43: 一志愿 | B43: 085600 | C43: 材料与化工 | E43: 高增超 | F43: 102895210700561 | G43: 290 | H43: =VLOOKUP(E43,[1]sheet1!$C$10:$L$81,10,FALSE) -> 118 | I43: 40 | J43: 88 | K43: =H43+I43+J43 -> 246 | L43: =G43*0.7+K43*0.3 -> 276.80 | M43: 35 | N43: 是
A44: 一志愿 | B44: 085600 | C44: 材料与化工 | E44: 张天顺 | F44: 102895210701990 | G44: 293 | H44: =VLOOKUP(E44,[1]sheet1!$C$10:$L$81,10,FALSE) -> 109 | I44: 42 | J44: 86 | K44: =H44+I44+J44 -> 237 | L44: =G44*0.7+K44*0.3 -> 276.20 | M44: 36 | N44: 是
A45: 一志愿 | B45: 085600 | C45: 材料与化工 | E45: 翟嘉锐 | F45: 102895210701989 | G45: 294 | H45: =VLOOKUP(E45,[1]sheet1!$C$10:$L$81,10,FALSE) -> 107 | I45: 39 | J45: 88 | K45: =H45+I45+J45 -> 234 | L45: =G45*0.7+K45*0.3 -> 276.00 | M45: 37 | N45: 是
A46: 一志愿 | B46: 085600 | C46: 材料与化工 | E46: 王鑫晶 | F46: 102895210704350 | G46: 288 | H46: =VLOOKUP(E46,[1]sheet1!$C$10:$L$81,10,FALSE) -> 126 | I46: 41 | J46: 76 | K46: =H46+I46+J46 -> 243 | L46: =G46*0.7+K46*0.3 -> 274.50 | M46: 38 | N46: 是
A47: 一志愿 | B47: 085600 | C47: 材料与化工 | E47: 王洋 | F47: 102895210701979 | G47: 288 | H47: =VLOOKUP(E47,[1]sheet1!$C$10:$L$81,10,FALSE) -> 117 | I47: 40 | J47: 85 | K47: =H47+I47+J47 -> 242 | L47: =G47*0.7+K47*0.3 -> 274.28 | M47: 39 | N47: 是
A48: 一志愿 | B48: 085600 | C48: 材料与化工 | E48: 严楷 | F48: 102895210701986 | G48: 285 | H48: =VLOOKUP(E48,[1]sheet1!$C$10:$L$81,10,FALSE) -> 115 | I48: 40 | J48: 85 | K48: =H48+I48+J48 -> 240 | L48: =G48*0.7+K48*0.3 -> 271.50 | M48: 40 | N48: 是
A49: 一志愿 | B49: 085600 | C49: 材料与化工 | E49: 毛陆鑫 | F49: 102895210700576 | G49: 291 | H49: =VLOOKUP(E49,[1]sheet1!$C$10:$L$81,10,FALSE) -> 99 | I49: 40 | J49: 84 | K49: =H49+I49+J49 -> 223 | L49: =G49*0.7+K49*0.3 -> 270.60 | M49: 41 | N49: 是
A50: 一志愿 | B50: 085600 | C50: 材料与化工 | E50: 李扣华 | F50: 102895210700566 | G50: 285 | H50: =VLOOKUP(E50,[1]sheet1!$C$10:$L$81,10,FALSE) -> 115 | I50: 42 | J50: 79 | K50: =H50+I50+J50 -> 236 | L50: =G50*0.7+K50*0.3 -> 270.30 | M50: 42 | N50: 是
A51: 一志愿 | B51: 085600 | C51: 材料与化工 | E51: 颜明旭 | F51: 102895210702392 | G51: 292 | H51: =VLOOKUP(E51,[1]sheet1!$C$10:$L$81,10,FALSE) -> 114 | I51: 35 | J51: 70 | K51: =H51+I51+J51 -> 219 | L51: =G51*0.7+K51*0.3 -> 270.10 | M51: 43 | N51: 是
A52: 一志愿 | B52: 085600 | C52: 材料与化工 | E52: 宋飞 | F52: 102895210700587 | G52: 283 | H52: =VLOOKUP(E52,[1]sheet1!$C$10:$L$81,10,FALSE) -> 104 | I52: 41 | J52: 88 | K52: =H52+I52+J52 -> 233 | L52: =G52*0.7+K52*0.3 -> 267.93 | M52: 44 | N52: 是
A53: 一志愿 | B53: 085600 | C53: 材料与化工 | E53: 马俊杰 | F53: 102895210700575 | G53: 282 | H53: =VLOOKUP(E53,[1]sheet1!$C$10:$L$81,10,FALSE) -> 111 | I53: 41 | J53: 80 | K53: =H53+I53+J53 -> 232 | L53: =G53*0.7+K53*0.3 -> 267.00 | M53: 45 | N53: 是
A54: 一志愿 | B54: 085600 | C54: 材料与化工 | E54: 张士涛 | F54: 102895210700605 | G54: 274 | H54: =VLOOKUP(E54,[1]sheet1!$C$10:$L$81,10,FALSE) -> 124 | I54: 38 | J54: 85 | K54: =H54+I54+J54 -> 247 | L54: =G54*0.7+K54*0.3 -> 265.90 | M54: 46 | N54: 是
A55: 一志愿 | B55: 085600 | C55: 材料与化工 | E55: 石玉婷 | F55: 102895210704087 | G55: 276 | H55: =VLOOKUP(E55,[1]sheet1!$C$10:$L$81,10,FALSE) -> 102 | I55: 44 | J55: 95 | K55: =H55+I55+J55 -> 241 | L55: =G55*0.7+K55*0.3 -> 265.50 | M55: 47 | N55: 是
A56: 一志愿 | B56: 085600 | C56: 材料与化工 | E56: 石志康 | F56: 102895210701973 | G56: 283 | H56: =VLOOKUP(E56,[1]sheet1!$C$10:$L$81,10,FALSE) -> 115 | I56: 35 | J56: 70 | K56: =H56+I56+J56 -> 220 | L56: =G56*0.7+K56*0.3 -> 264.10 | M56: 48 | N56: 是
A57: 一志愿 | B57: 085600 | C57: 材料与化工 | E57: 徐国庆 | F57: 102895210703434 | G57: 281 | H57: =VLOOKUP(E57,[1]sheet1!$C$10:$L$81,10,FALSE) -> 94 | I57: 40 | J57: 85 | K57: =H57+I57+J57 -> 219 | L57: =G57*0.7+K57*0.3 -> 262.40 | M57: 49 | N57: 是
A58: 一志愿 | B58: 085600 | C58: 材料与化工 | E58: 黄洋 | F58: 102895210700564 | G58: 272 | H58: =VLOOKUP(E58,[1]sheet1!$C$10:$L$81,10,FALSE) -> 99 | I58: 45 | J58: 95 | K58: =H58+I58+J58 -> 239 | L58: =G58*0.7+K58*0.3 -> 262.10 | M58: 50 | N58: 是
A59: 一志愿 | B59: 085600 | C59: 材料与化工 | E59: 沈思达 | F59: 102895210700586 | G59: 264 | H59: =VLOOKUP(E59,[1]sheet1!$C$10:$L$81,10,FALSE) -> 134 | I59: 43 | J59: 77 | K59: =H59+I59+J59 -> 254 | L59: =G59*0.7+K59*0.3 -> 261.00 | M59: 51 | N59: 是
A60: 一志愿 | B60: 085600 | C60: 材料与化工 | E60: 陈杰 | F60: 102895210705143 | G60: 271 | H60: =VLOOKUP(E60,[1]sheet1!$C$10:$L$81,10,FALSE) -> 110 | I60: 40 | J60: 82 | K60: =H60+I60+J60 -> 232 | L60: =G60*0.7+K60*0.3 -> 259.30 | M60: 52 | N60: 是
A61: 一志愿 | B61: 085600 | C61: 材料与化工 | E61: 任洺雨 | F61: 102895210700945 | G61: 278 | H61: =VLOOKUP(E61,[1]sheet1!$C$10:$L$81,10,FALSE) -> 100 | I61: 37 | J61: 78 | K61: =H61+I61+J61 -> 215 | L61: =G61*0.7+K61*0.3 -> 259.10 | M61: 53 | N61: 是
A62: 一志愿 | B62: 085600 | C62: 材料与化工 | E62: 赵李岭 | F62: 102895210700606 | G62: 261 | H62: =VLOOKUP(E62,[1]sheet1!$C$10:$L$81,10,FALSE) -> 119 | I62: 40 | J62: 90 | K62: =H62+I62+J62 -> 249 | L62: =G62*0.7+K62*0.3 -> 257.40 | M62: 54 | N62: 是
A63: 一志愿 | B63: 085600 | C63: 材料与化工 | E63: 杜旭阳 | F63: 102895210705199 | G63: 283 | H63: =VLOOKUP(E63,[1]sheet1!$C$10:$L$81,10,FALSE) -> 91 | I63: 30 | J63: 75 | K63: =H63+I63+J63 -> 196 | L63: =G63*0.7+K63*0.3 -> 256.90 | M63: 55 | N63: 是
A64: 一志愿 | B64: 085600 | C64: 材料与化工 | E64: 周长山 | F64: 102895210700609 | G64: 277 | H64: =VLOOKUP(E64,[1]sheet1!$C$10:$L$81,10,FALSE) -> 92 | I64: 35 | J64: 80 | K64: =H64+I64+J64 -> 207 | L64: =G64*0.7+K64*0.3 -> 256.00 | M64: 56 | N64: 是
A65: 一志愿 | B65: 085600 | C65: 材料与化工 | E65: 何佳乐 | F65: 102895210701961 | G65: 261 | H65: =VLOOKUP(E65,[1]sheet1!$C$10:$L$81,10,FALSE) -> 126 | I65: 35 | J65: 83 | K65: =H65+I65+J65 -> 244 | L65: =G65*0.7+K65*0.3 -> 255.90 | M65: 57 | N65: 是
A66: 一志愿 | B66: 085600 | C66: 材料与化工 | E66: 李论 | F66: 102895210704674 | G66: 268 | H66: =VLOOKUP(E66,[1]sheet1!$C$10:$L$81,10,FALSE) -> 102 | I66: 38 | J66: 85 | K66: =H66+I66+J66 -> 225 | L66: =G66*0.7+K66*0.3 -> 255.10 | M66: 58 | N66: 是
A67: 一志愿 | B67: 085600 | C67: 材料与化工 | E67: 万明月 | F67: 102895210700589 | G67: 274 | H67: =VLOOKUP(E67,[1]sheet1!$C$10:$L$81,10,FALSE) -> 103 | I67: 37 | J67: 70 | K67: =H67+I67+J67 -> 210 | L67: =G67*0.7+K67*0.3 -> 254.80 | M67: 59 | N67: 是
A68: 一志愿 | B68: 085600 | C68: 材料与化工 | E68: 张佳贺 | F68: 102895210704496 | G68: 263 | H68: =VLOOKUP(E68,[1]sheet1!$C$10:$L$81,10,FALSE) -> 106 | I68: 45 | J68: 83 | K68: =H68+I68+J68 -> 234 | L68: =G68*0.7+K68*0.3 -> 254.30 | M68: 60 | N68: 是
A69: 一志愿 | B69: 085600 | C69: 材料与化工 | E69: 丁庆伟 | F69: 102895210700558 | G69: 273 | H69: =VLOOKUP(E69,[1]sheet1!$C$10:$L$81,10,FALSE) -> 90 | I69: 40 | J69: 80 | K69: =H69+I69+J69 -> 210 | L69: =G69*0.7+K69*0.3 -> 254.10 | M69: 61 | N69: 是
A70: 一志愿 | B70: 085600 | C70: 材料与化工 | E70: 边世通 | F70: 102895210702238 | G70: 262 | H70: =VLOOKUP(E70,[1]sheet1!$C$10:$L$81,10,FALSE) -> 113 | I70: 38 | J70: 84 | K70: =H70+I70+J70 -> 235 | L70: =G70*0.7+K70*0.3 -> 253.90 | M70: 62 | N70: 是
A71: 一志愿 | B71: 085600 | C71: 材料与化工 | E71: 狄桢舜 | F71: 102895210705237 | G71: 267 | H71: =VLOOKUP(E71,[1]sheet1!$C$10:$L$81,10,FALSE) -> 90 | I71: 45 | J71: 88 | K71: =H71+I71+J71 -> 223 | L71: =G71*0.7+K71*0.3 -> 253.80 | M71: 63 | N71: 是
A72: 一志愿 | B72: 085600 | C72: 材料与化工 | E72: 杨亚丽 | F72: 102895210705231 | G72: 263 | H72: =VLOOKUP(E72,[1]sheet1!$C$10:$L$81,10,FALSE) -> 105 | I72: 38 | J72: 88 | K72: =H72+I72+J72 -> 231 | L72: =G72*0.7+K72*0.3 -> 253.40 | M72: 64 | N72: 是
A73: 一志愿 | B73: 085600 | C73: 材料与化工 | E73: 赵英尚 | F73: 102895210700792 | G73: 269 | H73: =VLOOKUP(E73,[1]sheet1!$C$10:$L$81,10,FALSE) -> 93 | I73: 38 | J73: 84 | K73: =H73+I73+J73 -> 215 | L73: =G73*0.7+K73*0.3 -> 252.80 | M73: 65 | N73: 是
A74: 一志愿 | B74: 085600 | C74: 材料与化工 | E74: 舒镕 | F74: 102895210705183 | G74: 266 | H74: =VLOOKUP(E74,[1]sheet1!$C$10:$L$81,10,FALSE) -> 96 | I74: 40 | J74: 85 | K74: =H74+I74+J74 -> 221 | L74: =G74*0.7+K74*0.3 -> 252.50 | M74: 66 | N74: 是
A75: 一志愿 | B75: 085600 | C75: 材料与化工 | E75: 韩书格 | F75: 102895210704660 | G75: 264 | H75: =VLOOKUP(E75,[1]sheet1!$C$10:$L$81,10,FALSE) -> 107 | I75: 40 | J75: 70 | K75: =H75+I75+J75 -> 217 | L75: =G75*0.7+K75*0.3 -> 249.90 | M75: 67 | N75: 是
A76: 一志愿 | B76: 085600 | C76: 材料与化工 | E76: 曾先贵 | F76: 102895210701988 | G76: 268 | H76: =VLOOKUP(E76,[1]sheet1!$C$10:$L$81,10,FALSE) -> 91 | I76: 35 | J76: 80 | K76: =H76+I76+J76 -> 206 | L76: =G76*0.7+K76*0.3 -> 249.40 | M76: 68 | N76: 是
A77: 一志愿 | B77: 085600 | C77: 材料与化工 | E77: 卞瑞 | F77: 102895210700552 | G77: 271 | H77: =VLOOKUP(E77,[1]sheet1!$C$10:$L$81,10,FALSE) -> 91 | I77: 32 | J77: 72 | K77: =H77+I77+J77 -> 195 | L77: =G77*0.7+K77*0.3 -> 248.20 | M77: 69 | N77: 是
A78: 一志愿 | B78: 085600 | C78: 材料与化工 | E78: 文小辉 | F78: 102895210700595 | G78: 261 | H78: =VLOOKUP(E78,[1]sheet1!$C$10:$L$81,10,FALSE) -> 101 | I78: 45 | J78: 70 | K78: =H78+I78+J78 -> 216 | L78: =G78*0.7+K78*0.3 -> 247.50 | M78: 70 | N78: 是
A79: 一志愿 | B79: 085600 | C79: 材料与化工 | E79: 孙齐 | F79: 102895210700777 | G79: 244 | H79: 110 | I79: 40 | J79: 95 | K79: 245 | L79: 244.30 | M79: 71 | N79: 是 | O79: 士兵计划
A80: 一志愿 | B80: 085600 | C80: 材料与化工 | E80: 赵晓晨 | F80: 102895210702124 | G80: 278 | H80: =VLOOKUP(E80,[1]sheet1!$C$10:$L$81,10,FALSE) -> 101 | I80: 45 | J80: 76 | K80: =H80+I80+J80 -> 222 | L80: =G80*0.7+K80*0.3 -> 261.20 | M80: 1 | N80: 是 | O80: 非全
